bitfinex/quotes_ETHUSD_20230902
["timestamp","ask_amount","ask_price","bid_price","bid_amount"]
[1693652488868,1.566,1635.5,1635.3,1.70330734]
[1693652489178,1.91472,1635.5,1635.4,1.06231197]
[1693652489670,2.29363367,1635.5,1635.3,1.70330734]
[1693652489867,1.94838961,1635.5,1635.3,1.70330734]
[1693652494802,1.566,1635.4,1635.3,1.70330734]
[1693652495988,1.56946801,1635.4,1635.3,1.70330734]
[1693652503302,1.97748304,1635.4,1635.3,1.70330734]
[1693652505689,1.97748304,1635.4,1635.3,2.66481632]
[1693652506527,0.41148304,1635.4,1635.3,2.66481632]
[1693652517635,0.41148304,1635.4,1635.3,2.02382095]
[1693652518299,0.41148304,1635.4,1635.3,2.66494393]
[1693652519639,0.41148304,1635.4,1635.3,2.02382095]
[1693652525950,0.41148304,1635.4,1635.3,3.30583292]
[1693652526171,0.41148304,1635.4,1635.3,2.34432394]
[1693652526649,0.35366332,1635.4,1635.3,2.66284622]
[1693652526846,1.566,1635.6,1635.3,2.66284622]
[1693652527053,0.00333463,1635.4,1635.3,2.66284622]
[1693652527965,1.566,1635.6,1635.3,2.66284622]
[1693652528129,1.566,1635.6,1635.5,1.60315626]
[1693652528657,1.566,1635.7,1635.5,1.60315626]
[1693652528889,1.566,1635.6,1635.5,1.60315626]
[1693652529177,1.56935047,1635.6,1635.5,1.70369522]
[1693652529334,1.56935047,1635.6,1635.5,0.6413657]
[1693652534275,1.95543734,1635.6,1635.5,0.6413657]
[1693652536290,0.38943734,1635.6,1635.5,0.6413657]
[1693652536467,0.38943734,1635.6,1635.5,1.60341426]
[1693652536963,0.38943734,1635.6,1635.5,1.99826117]
[1693652537145,0.38943734,1635.6,1635.5,3.06058461]
[1693652538571,0.38943734,1635.6,1635.5,2.09853605]
[1693652538876,0.38943734,1635.6,1635.5,3.06058461]
[1693652539077,0.38943734,1635.6,1635.5,2.09853605]
[1693652540646,1.95543734,1635.6,1635.5,2.09853605]
[1693652544292,1.95543734,1635.6,1635.5,3.06058461]
[1693652546492,1.95543734,1635.6,1635.5,2.09853605]
[1693652549793,1.95543734,1635.6,1635.5,3.06058461]
[1693652551196,1.95543734,1635.6,1635.5,2.09853605]
[1693652551701,1.95543734,1635.6,1635.5,3.06058461]
[1693652552297,1.95543734,1635.6,1635.5,2.09853605]
[1693652555798,0.38943734,1635.6,1635.5,2.09853605]
[1693652556707,0.38943734,1635.6,1635.5,3.06058461]
[1693652557605,0.38943734,1635.6,1635.5,2.09853605]
[1693652557806,0.38943734,1635.6,1635.5,3.06058461]
[1693652559707,0.38943734,1635.6,1635.5,3.70195032]
[1693652560410,0.38943734,1635.6,1635.5,2.73990176]
[1693652561508,0.00335047,1635.6,1635.5,2.73990176]
[1693652562007,5.5838,1635.9,1635.5,2.73990176]
[1693652562209,5.5838,1635.9,1635.6,2.66322306]
[1693652562430,5.5838,1635.9,1635.6,3.0973032]
[1693652562609,0.38612881,1635.8,1635.7,1.06232344]
[1693652563009,5.5838,1635.9,1635.7,1.06232344]
[1693652563210,3.6174,1635.9,1635.7,1.06232344]
[1693652563380,0.38612881,1635.8,1635.7,1.06232344]
[1693652563580,3.6174,1635.9,1635.7,1.37205376]
[1693652563792,3.6174,1635.9,1635.7,0.30973032]
[1693652563992,0.0032852,1635.8,1635.7,0.30973032]
[1693652564389,0.0032852,1635.8,1635.7,1.3718911]
[1693652565018,3.6174,1635.9,1635.7,1.3718911]
[1693652565176,3.6174,1635.9,1635.7,0.30973032]
[1693652566114,0.0032852,1635.8,1635.7,0.30973032]
[1693652566609,0.0032852,1635.8,1635.7,1.37189237]
[1693652566994,3.6174,1635.9,1635.7,1.37189237]
[1693652567193,3.6174,1635.9,1635.7,0.30973032]
[1693652567533,3.6174,1635.9,1635.6,1.60089962]
[1693652567733,3.6174,1635.9,1635.6,2.66306224]
[1693652568030,0.0032852,1635.8,1635.6,2.66306224]
[1693652569020,3.6174,1635.9,1635.6,2.66306224]
[1693652569985,0.0032852,1635.8,1635.6,2.66306224]
[1693652571219,3.6174,1635.9,1635.6,2.66306224]
[1693652572022,0.0032852,1635.8,1635.6,2.66306224]
[1693652573029,3.6174,1635.9,1635.6,2.66306224]
[1693652573212,1.566,1635.8,1635.6,2.66306224]
[1693652574023,0.00327728,1635.7,1635.6,2.66306224]
[1693652574334,0.00327728,1635.7,1635.6,3.3054338]
[1693652574527,0.00327728,1635.7,1635.6,3.30541732]
[1693652574724,0.00327728,1635.7,1635.6,2.34489403]
[1693652575120,3.6174,1635.9,1635.6,3.30542115]
[1693652575297,1.566,1635.8,1635.7,0.64035201]
[1693652575495,1.93750265,1635.8,1635.7,0.64035201]
[1693652575829,1.93750265,1635.8,1635.7,1.70251463]
[1693652576025,1.94066503,1635.8,1635.7,1.70251463]
[1693652576330,1.94066503,1635.8,1635.7,0.64035201]
[1693652577411,1.94066503,1635.8,1635.7,1.03492933]
[1693652577612,1.94066503,1635.8,1635.7,2.09709195]
[1693652586450,1.94066503,1635.8,1635.7,1.70251463]
[1693652587112,1.94066503,1635.8,1635.7,0.64035201]
[1693652587511,1.94066503,1635.8,1635.7,1.70251463]
[1693652588025,1.94066503,1635.8,1635.7,0.64035201]
[1693652590844,0.37466503,1635.8,1635.7,0.64035201]
[1693652591050,0.37466503,1635.8,1635.7,1.03492933]
[1693652591251,0.37466503,1635.8,1635.7,2.09709195]
[1693652592461,0.37466503,1635.8,1635.7,1.70251463]
[1693652592923,0.37466503,1635.8,1635.7,0.64035201]
[1693652598167,0.37466503,1635.8,1635.7,1.60087913]
[1693652603062,0.37466503,1635.8,1635.7,0.96052712]
[1693652613366,0.37466503,1635.8,1635.7,4.36458545]
[1693652613593,0.00316238,1635.8,1635.7,5.42674807]
[1693652614089,1.566,1636.1,1635.7,5.42674807]
[1693652614270,1.566,1636.1,1635.8,2.66397047]
[1693652614469,0.33487833,1636.0,1635.8,2.66397047]
[1693652614984,0.00329787,1635.9,1635.8,2.66397047]
[1693652615369,0.00329787,1635.9,1635.8,2.02324733]
[1693652615770,0.00329787,1635.9,1635.8,2.66394224]
[1693652615972,0.00329787,1635.9,1635.8,2.02324733]
[1693652616385,0.00329787,1635.9,1635.8,2.66396435]
[1693652617104,0.00329787,1635.9,1635.8,2.02324733]
[1693652618173,0.00329787,1635.9,1635.8,3.30597874]
[1693652618401,0.00329787,1635.9,1635.8,2.02324733]
[1693652622811,0.33821444,1635.9,1635.8,2.02324733]
[1693652626015,0.33821444,1635.9,1635.8,2.66379802]
[1693652626909,0.33821444,1635.9,1635.8,2.02324733]
[1693652641245,0.33821444,1635.9,1635.8,3.30597874]
[1693652649521,0.33821444,1635.9,1635.8,3.30338517]
[1693652656550,0.33821444,1635.9,1635.8,2.3427975]
[1693652658964,0.31679444,1635.9,1635.8,2.3427975]
[1693652659164,0.31983863,1635.9,1635.8,2.3427975]
[1693652660082,0.31679444,1635.9,1635.8,2.3427975]
[1693652660646,0.31422444,1635.9,1635.8,2.3427975]
[1693652668558,0.31422444,1635.9,1635.8,2.34317267]
[1693652672406,0.31422444,1635.9,1635.8,5.42502671]
[1693652672574,0.31422444,1635.9,1635.8,5.7453177]
[1693652672904,1e-08,1635.9,1635.8,5.7453177]
[1693652673108,0.33300014,1635.9,1635.8,5.7453177]
[1693652673273,1.8963,1636.0,1635.8,5.7453177]
[1693652673473,1.8963,1636.0,1635.9,5.42474686]
[1693652678182,1.8963,1636.0,1635.9,6.38519566]
[1693652678383,1.8963,1636.0,1635.9,5.42474686]
[1693652679302,1.8963,1636.0,1635.9,6.38516331]
[1693652680313,3.4623,1636.0,1635.9,2.02242514]
[1693652680913,3.4623,1636.0,1635.9,2.66278433]
[1693652681114,3.4623,1636.0,1635.9,1.60077564]
[1693652681721,3.80624193,1636.0,1635.9,1.60077564]
[1693652684190,3.4623,1636.0,1635.9,1.60077564]
[1693652684629,3.80627335,1636.0,1635.9,1.60077564]
[1693652687222,3.80627335,1636.0,1635.9,2.02242514]
[1693652687390,3.80627335,1636.0,1635.9,0.96041645]
[1693652687899,3.80627335,1636.0,1635.9,1.60088362]
[1693652688320,3.80627335,1636.0,1635.9,2.66289852]
[1693652688520,3.80627335,1636.0,1635.9,1.60088983]
[1693652695547,3.80627335,1636.0,1635.9,0.96041645]
[1693652695838,3.80627335,1636.0,1635.9,2.02242514]
[1693652696041,3.80627335,1636.0,1635.9,0.96041645]
[1693652699240,2.24027335,1636.0,1635.9,0.96041645]
[1693652700241,3.80627335,1636.0,1635.9,0.96041645]
[1693652700943,3.4623,1636.0,1635.9,0.96041645]
[1693652703452,3.4623,1636.0,1635.9,1.34469201]
[1693652703630,3.4623,1636.0,1635.9,2.4067007]
[1693652704448,3.79388983,1636.0,1635.9,2.4067007]
[1693652706451,3.79388983,1636.0,1635.9,2.02242514]
[1693652706855,3.79388983,1636.0,1635.9,0.96041645]
[1693652712364,1.89758983,1636.0,1635.9,0.96041645]
[1693652719673,1.89758983,1636.0,1635.9,0.96081805]
[1693652720173,1.566,1636.0,1635.9,0.96081805]
[1693652726282,1.566,1636.0,1635.9,2.24190878]
[1693652728785,1.566,1636.0,1635.9,1.28109073]
[1693652732075,1.57240667,1636.0,1635.9,1.28109073]
[1693652733497,1.57240667,1636.0,1635.9,2.24207634]
[1693652735900,1.57240667,1636.0,1635.9,1.28109073]
[1693652736107,1.57240667,1636.0,1635.9,2.34307929]
[1693652736565,1.57240667,1636.0,1635.9,1.28109073]
[1693652737367,1.57240667,1636.0,1635.9,2.24205737]
[1693652739607,1.57240667,1636.0,1635.9,2.34307929]
[1693652739808,1.57240667,1636.0,1635.9,1.28109073]
[1693652741607,1.91381933,1636.0,1635.9,1.28109073]
[1693652748314,1.91381933,1636.0,1635.9,4.28109073]
[1693652748515,1.91381933,1636.0,1635.9,5.34307929]
[1693652749119,1.90741266,1636.0,1635.9,5.34307929]
[1693652750515,1.566,1636.0,1635.9,5.34307929]
[1693652750820,1.90741266,1636.0,1635.9,5.34307929]
[1693652752090,1.90741266,1636.0,1635.9,6.30403221]
[1693652754226,1.90741266,1636.0,1635.9,5.34307929]
[1693652760832,1.90741266,1636.0,1635.9,2.34307929]
[1693652761491,1.90741266,1636.0,1635.9,1.28109073]
[1693652769031,1.90741266,1636.0,1635.9,4.28109073]
[1693652769228,1.90741266,1636.0,1635.9,5.34307929]
[1693652782531,1.90741266,1636.0,1635.9,6.30424764]
[1693652782735,1.90741266,1636.0,1635.9,5.02315691]
[1693652783067,2.3412925,1636.0,1635.9,5.02315691]
[1693652786260,2.33486994,1636.0,1635.9,5.02315691]
[1693652791338,1.99345728,1636.0,1635.9,5.02315691]
[1693652791539,2.33483723,1636.0,1635.9,5.02315691]
[1693652794278,2.33483723,1636.0,1635.9,6.30424764]
[1693652801191,1.99345728,1636.0,1635.9,6.30424764]
[1693652802090,1.99986925,1636.0,1635.9,6.30424764]
[1693652802291,2.34122266,1636.0,1635.9,6.30424764]
[1693652808695,2.34122266,1636.0,1635.9,5.02315691]
[1693652808897,2.34122266,1636.0,1635.9,5.66386694]
[1693652809465,7.34952493,1636.0,1635.9,4.06198856]
[1693652809663,7.00817152,1636.0,1635.7,0.64071003]
[1693652809868,0.34135341,1635.9,1635.6,0.64071003]
[1693652810172,5.33063641,1635.9,1635.6,1.60187838]
[1693652810390,0.97082069,1635.8,1635.6,1.60187838]
[1693652810588,0.34135341,1635.7,1635.6,0.64071003]
[1693652811180,0.34771026,1635.7,1635.6,0.64071003]
[1693652811704,0.34771026,1635.7,1635.5,1.60187838]
[1693652811870,2.41521026,1635.7,1635.5,1.60187838]
[1693652812598,2.41521026,1635.7,1635.5,0.64071003]
[1693652813469,2.94275335,1635.7,1635.5,0.64071003]
[1693652816572,2.94275335,1635.7,1635.4,1.60187838]
[1693652816775,2.41521026,1635.7,1635.4,1.60187838]
[1693652818021,0.43761741,1635.6,1635.4,1.60187838]
[1693652818380,2.41521026,1635.7,1635.4,1.60187838]
[1693652819141,2.41521026,1635.7,1635.4,0.64071003]
[1693652820551,2.41521026,1635.7,1635.4,3.64071003]
[1693652820696,2.84567129,1635.7,1635.4,3.64071003]
[1693652821449,2.50431788,1635.7,1635.4,3.64071003]
[1693652821747,2.07385685,1635.7,1635.4,3.64071003]
[1693652822498,2.07385685,1635.7,1635.4,0.64071003]
[1693652826553,2.07385685,1635.7,1635.4,1.60187838]
[1693652827272,2.07385685,1635.7,1635.5,0.64071003]
[1693652830641,2.07385685,1635.7,1635.5,1.70299314]
[1693652830843,2.07385685,1635.7,1635.6,1.06228311]
[1693652831162,2.07385685,1635.7,1635.5,0.64071003]
[1693652832576,2.07385685,1635.7,1635.5,1.70299314]
[1693652832775,2.07385685,1635.7,1635.6,1.06228311]
[1693652833269,2.07385685,1635.7,1635.5,1.70299314]
[1693652833574,2.07385685,1635.7,1635.6,1.06228311]
[1693652833768,2.07385685,1635.7,1635.5,1.70299314]
[1693652833973,2.07385685,1635.7,1635.6,1.06228311]
[1693652834475,2.07385685,1635.7,1635.5,1.70299314]
[1693652838178,2.07385685,1635.7,1635.5,2.66416149]
[1693652838381,2.07385685,1635.7,1635.6,1.06228311]
[1693652838747,2.07385685,1635.7,1635.5,2.66416149]
[1693652838945,2.07385685,1635.7,1635.6,1.06228311]
[1693652839173,2.47018254,1635.7,1635.5,2.66416149]
[1693652839378,2.47018254,1635.7,1635.6,1.06228311]
[1693652839781,2.47018254,1635.7,1635.5,1.60187838]
[1693652839782,2.47018254,1635.7,1635.5,2.66416149]
[1693652839950,2.07385685,1635.7,1635.6,1.06228311]
[1693652840679,2.07385685,1635.7,1635.5,2.66416149]
[1693652841569,2.07385685,1635.7,1635.6,1.06228311]
[1693652842094,3.63985685,1635.7,1635.6,1.06228311]
[1693652842384,3.63985685,1635.7,1635.5,2.66416149]
[1693652842599,3.63985685,1635.7,1635.6,1.06228311]
[1693652842761,3.63985685,1635.7,1635.6,1.70299314]
[1693652842953,3.63985685,1635.7,1635.6,0.64071003]
[1693652844392,4.19278254,1635.7,1635.6,0.64071003]
[1693652847687,3.63985685,1635.7,1635.6,0.64071003]
[1693652847899,3.63985685,1635.7,1635.6,1.70299314]
[1693652847900,4.10477745,1635.7,1635.6,1.70299314]
[1693652848093,4.10477745,1635.7,1635.6,0.64071003]
[1693652850159,4.10477745,1635.7,1635.6,1.70299314]
[1693652850362,4.10477745,1635.7,1635.6,0.64071003]
[1693652852472,4.10477745,1635.7,1635.6,1.60187838]
[1693652853799,4.10477745,1635.7,1635.6,0.96116835]
[1693652857613,4.10477745,1635.7,1635.6,2.02345146]
[1693652857913,4.10477745,1635.7,1635.6,0.96116835]
[1693652859207,4.10477745,1635.7,1635.6,1.60242807]
[1693652859588,0.47127745,1635.7,1635.6,1.35574854]
[1693652859889,0.47127745,1635.7,1635.6,2.73795403]
[1693652861083,0.47127745,1635.7,1635.6,3.69942888]
[1693652861491,0.47127745,1635.7,1635.6,2.41833815]
[1693652861690,0.47127745,1635.7,1635.6,3.69942888]
[1693652861889,0.47127745,1635.7,1635.6,2.41833815]
[1693652863218,0.47127745,1635.7,1635.6,3.05926772]
[1693652864733,0.47127745,1635.7,1635.6,2.41833815]
[1693652874731,0.47127745,1635.7,1635.6,3.69942888]
[1693652875130,0.14326315,1635.7,1635.6,2.41833815]
[1693652875451,0.56890803,1635.7,1635.6,2.41833815]
[1693652880558,0.56890803,1635.7,1635.6,2.41716829]
[1693652899377,0.56890803,1635.7,1635.6,3.69778361]
[1693652903205,0.56890803,1635.7,1635.6,2.73732212]
[1693652904503,0.56890803,1635.7,1635.6,2.34274193]
[1693652904672,0.56890803,1635.7,1635.6,1.28061532]
[1693652906608,2.4798328,1635.7,1635.6,0.64106269]
[1693652906897,2.4798328,1635.7,1635.6,1.7031893]
[1693652907104,2.4798328,1635.7,1635.6,0.64106269]
[1693652908281,2.91848608,1635.7,1635.6,0.64106269]
[1693652909600,2.91848608,1635.7,1635.5,1.60249147]
[1693652909793,0.34492477,1635.6,1635.5,1.60249147]
[1693652910108,0.87610117,1635.6,1635.5,1.60249147]
[1693652911996,2.44210117,1635.6,1635.5,1.60249147]
[1693652912568,2.44210117,1635.6,1635.5,0.64106269]
[1693652916417,2.44210117,1635.6,1635.5,1.7031893]
[1693652916878,2.44210117,1635.6,1635.5,0.64106269]
[1693652921105,2.4406286,1635.6,1635.5,0.64106269]
[1693652922407,2.4406286,1635.6,1635.5,1.7031893]
[1693652922608,2.4406286,1635.6,1635.5,0.64106269]
[1693652923699,2.4406286,1635.6,1635.5,1.06212661]
[1693652923902,1.566,1635.5,1635.2,1.60249147]
[1693652924103,1.566,1635.3,1635.2,1.60249147]
[1693652924313,1.91092477,1635.3,1635.2,0.64106269]
[1693652924625,2.45586823,1635.3,1635.2,1.0623981]
[1693652925002,2.45586823,1635.3,1635.1,1.60249147]
[1693652925213,1.566,1635.2,1635.1,1.60249147]
[1693652925603,1.566,1635.2,1635.1,0.64106269]
[1693652927321,1.91092477,1635.3,1635.1,0.64106269]
[1693652927622,1.91092477,1635.3,1635.0,0.64012328]
[1693652927917,1.91092477,1635.3,1635.0,2.03870652]
[1693652928093,0.54425866,1635.2,1635.1,1.06252714]
[1693652928293,1.91092477,1635.3,1635.1,1.06252714]
[1693652928925,0.54476491,1635.2,1635.1,1.06252714]
[1693652929291,1.91092477,1635.3,1635.1,1.06252714]
[1693652929824,0.54476491,1635.2,1635.0,1.93760816]
[1693652930024,3.97292477,1635.3,1635.1,1.06253247]
[1693652930531,0.54476491,1635.2,1635.0,1.60155206]
[1693652930722,1.91092477,1635.3,1635.2,1.06253086]
[1693652931021,1.9754,1635.2,1635.1,0.64012328]
[1693652931395,1.9754,1635.2,1635.1,1.06254002]
[1693652931591,1.9754,1635.2,1635.1,1.7026633]
[1693652932020,1.9754,1635.2,1635.1,0.64012328]
[1693652932537,1.33787699,1635.2,1635.1,0.64012328]
[1693652934082,3.62816485,1635.2,1635.1,1.06254002]
[1693652934419,3.62816485,1635.2,1634.9,0.63967199]
[1693652934420,5.29028786,1635.2,1634.9,0.63967199]
[1693652934724,4.94536309,1635.2,1634.9,0.63967199]
[1693652934956,4.33878786,1635.2,1634.9,0.63967199]
[1693652935125,1.566,1635.0,1634.9,0.63967199]
[1693652935329,1.566,1635.0,1634.9,1.59917997]
[1693652935549,0.43248775,1635.0,1634.9,2.6614867]
[1693652935737,0.43248775,1635.0,1634.9,2.02218165]
[1693652935941,0.43248775,1635.0,1634.9,2.66148689]
[1693652936454,0.43248775,1635.0,1634.9,1.70197891]
[1693652936634,0.43248775,1635.0,1634.9,2.66148689]
[1693652936953,0.43248775,1635.0,1634.9,2.02218165]
[1693652937352,0.43248775,1635.0,1634.9,0.95950798]
[1693652937725,0.97614077,1635.0,1634.9,0.95950798]
[1693652939555,0.97614077,1635.0,1634.9,2.23885196]
[1693652941353,0.97614077,1635.0,1634.9,3.30152563]
[1693652941537,0.97614077,1635.0,1634.9,2.23885196]
[1693652942554,0.97614077,1635.0,1634.9,1.27934398]
[1693652944232,0.97614077,1635.0,1634.6,1.5813]
[1693652944562,2.83174077,1635.0,1634.9,1.27748256]
[1693652944760,2.88574077,1635.0,1634.9,1.27748256]
[1693652944940,0.97614077,1635.0,1634.9,1.27748256]
[1693652945641,0.97614077,1635.0,1634.9,2.87433576]
[1693652947534,0.97614077,1635.0,1634.9,1.5968532]
[1693652947769,0.97614077,1635.0,1634.6,4.66315404]
[1693652948060,0.97614077,1635.0,1634.9,1.5966977]
[1693652951752,2.22362477,1635.1,1635.0,0.72413512]
[1693652951957,2.22362477,1635.1,1635.0,2.00182572]
[1693652952263,0.84520115,1635.1,1635.0,2.00182572]
[1693652952468,0.84520115,1635.1,1635.0,3.06450027]
[1693652955627,0.50136388,1635.1,1635.0,3.06450027]
[1693652956044,1.566,1635.1,1635.0,3.06450027]
[1693652963374,2.04044661,1635.1,1635.0,3.06450027]
[1693652968358,2.04044661,1635.1,1635.0,2.34036515]
[1693652968557,2.04044661,1635.1,1635.0,1.2776906]
[1693652969548,2.04044661,1635.1,1635.0,2.8743883]
[1693652969768,2.04044661,1635.1,1635.0,2.65937225]
[1693652970173,2.04044661,1635.1,1635.0,1.5966977]
[1693652970382,2.04044661,1635.1,1635.0,2.05423865]
[1693652970599,2.04044661,1635.1,1635.0,3.1169132]
[1693652972650,1.40285986,1635.1,1635.0,3.1169132]
[1693652974455,1.40285986,1635.1,1635.0,4.39943692]
[1693652975480,1.40285986,1635.1,1635.0,2.80273922]
[1693652975683,1.40285986,1635.1,1635.0,2.34519827]
[1693652976478,1.40285986,1635.1,1635.0,1.28252372]
[1693652977014,1.40285986,1635.1,1635.0,1.283172]
[1693652977506,1.40285986,1635.1,1635.0,2.24554668]
[1693652977685,1.40285986,1635.1,1635.0,2.34581808]
[1693652977891,1.40285986,1635.1,1635.0,1.283172]
[1693652978615,1.40285986,1635.1,1635.0,2.24568221]
[1693652978981,1.40285986,1635.1,1635.0,2.02515629]
[1693652979306,1.40285986,1635.1,1635.0,0.96251021]
[1693652979475,1.40285986,1635.1,1635.0,2.02515629]
[1693652979679,1.40285986,1635.1,1635.0,0.96251021]
[1693652980520,1.40285986,1635.1,1635.0,1.60454564]
[1693652980682,1.40285986,1635.1,1635.0,1.70468151]
[1693652980881,1.40285986,1635.1,1635.0,0.64203543]
[1693652981617,1.40285986,1635.1,1635.0,1.70468151]
[1693652982116,1.40285986,1635.1,1635.0,0.64203543]
[1693652991720,1.40285986,1635.1,1635.0,0.64196284]
[1693653015649,1.40285986,1635.1,1635.0,1.70460472]
[1693653016634,1.40285986,1635.1,1635.0,0.64196284]
[1693653020974,1.40285986,1635.1,1635.0,1.70460472]
[1693653021150,1.40285986,1635.1,1635.0,0.64196284]
[1693653028072,1.40285986,1635.1,1635.0,1.70460472]
[1693653028273,1.40285986,1635.1,1635.0,0.64196284]
[1693653032083,1.52815224,1635.1,1635.0,0.64196284]
[1693653032288,1.53330996,1635.1,1635.0,0.64196284]
[1693653043402,1.53330996,1635.1,1635.0,1.06264188]
[1693653043403,2.32172018,1635.1,1635.0,1.06264188]
[1693653043602,2.32172018,1635.1,1634.9,0.64196284]
[1693653043794,1.566,1635.0,1634.9,0.64196284]
[1693653044183,2.1762023,1635.0,1634.9,0.64196284]
[1693653045137,0.6102023,1635.0,1634.9,1.6049071]
[1693653045318,0.6102023,1635.0,1634.9,1.35809173]
[1693653045520,0.6102023,1635.0,1634.9,2.42073361]
[1693653045720,0.6102023,1635.0,1634.9,3.062795]
[1693653045890,2.1762023,1635.0,1634.9,2.09985074]
[1693653054499,2.1762023,1635.0,1634.9,3.062795]
[1693653055403,0.6102023,1635.0,1634.9,3.062795]
[1693653057103,0.6102023,1635.0,1634.9,2.09985074]
[1693653057743,2.1762023,1635.0,1634.9,1.70470327]
[1693653058103,2.1762023,1635.0,1634.9,0.64206139]
[1693653066838,2.1762023,1635.0,1634.9,1.60500565]
[1693653067251,2.1762023,1635.0,1634.9,0.64206139]
[1693653082374,2.1762023,1635.0,1634.8,2.24715055]
[1693653082375,0.32576254,1634.9,1634.8,2.24715055]
[1693653082575,1.03255902,1634.9,1634.6,0.64223613]
[1693653082782,6.63745954,1634.9,1634.5,1.60559033]
[1693653083289,0.00511445,1634.8,1634.6,0.64223613]
[1693653083519,0.00511445,1634.8,1634.5,0.64223613]
[1693653083520,1.566,1634.7,1634.5,0.64223613]
[1693653083787,1.566,1634.6,1634.5,0.64223613]
[1693653084149,1.57108175,1634.6,1634.5,0.64223613]
[1693653086574,1.57108175,1634.6,1634.4,1.60559033]
[1693653086779,1.566,1634.5,1634.4,1.60559033]
[1693653087256,2.17142414,1634.5,1634.4,1.60559033]
[1693653087571,2.17142414,1634.5,1634.4,0.64223613]
[1693653097521,0.60542414,1634.5,1634.4,1.60559033]
[1693653097724,1.566,1634.7,1634.5,0.03230305]
[1693653097912,1.566,1634.7,1634.5,0.67291951]
[1693653098229,0.57325612,1634.6,1634.5,1.63627371]
[1693653098391,0.57325612,1634.6,1634.5,0.67291951]
[1693653098592,0.00488578,1634.6,1634.5,0.67291951]
[1693653099225,1.566,1634.7,1634.5,0.67291951]
[1693653099422,1.566,1634.7,1634.5,1.63627371]
[1693653099608,0.56957572,1634.6,1634.5,1.63627371]
[1693653100023,1.566,1634.7,1634.5,1.63627371]
[1693653100253,0.0048949,1634.6,1634.5,1.63627371]
[1693653101233,1.566,1634.7,1634.5,1.63627371]
[1693653101624,0.57061769,1634.6,1634.5,1.63627371]
[1693653102018,1.566,1634.7,1634.5,1.63627371]
[1693653102326,0.57549817,1634.6,1634.5,1.63627371]
[1693653102626,0.57549817,1634.6,1634.5,2.69907531]
[1693653102826,0.00488048,1634.6,1634.5,2.69907531]
[1693653102998,0.00488048,1634.6,1634.5,2.05845885]
[1693653103193,1.566,1634.8,1634.5,5.14031289]
[1693653103400,1.566,1635.0,1634.6,5.74854237]
[1693653103757,33.40031151,1635.3,1634.7,1.70333413]
[1693653103758,1.566,1635.1,1634.7,1.70333413]
[1693653104026,0.53283757,1634.9,1634.8,3.08185404]
[1693653104193,0.00494342,1635.0,1634.8,4.14465564]
[1693653104398,0.00494342,1635.0,1634.9,1.0628016]
[1693653105026,0.00494342,1635.0,1634.9,1.0626646]
[1693653105232,0.5009242,1635.0,1634.9,1.0626646]
[1693653105601,3.8635,1635.2,1634.9,1.0626646]
[1693653105802,1.566,1635.1,1634.9,1.0626646]
[1693653106323,1.566,1635.1,1634.8,5.01845404]
[1693653106324,0.0047444,1635.0,1634.8,5.01845404]
[1693653106519,0.0047444,1635.0,1634.9,1.06266842]
[1693653106904,0.0047444,1635.0,1634.9,1.0626671]
[1693653107303,0.0047444,1635.0,1634.8,5.01845404]
[1693653112861,0.0047444,1635.0,1634.9,1.06267359]
[1693653114051,0.0047444,1635.0,1634.8,5.01845404]
[1693653117760,0.51993708,1634.9,1634.8,5.01845404]
[1693653117920,0.51993708,1634.9,1634.8,6.08113033]
[1693653118125,0.51993708,1634.9,1634.8,4.14453033]
[1693653118463,0.5246843,1634.9,1634.8,4.14453033]
[1693653120652,0.5246843,1634.9,1634.8,1.06267629]
[1693653120975,2.0906843,1634.9,1634.8,1.06267629]
[1693653121147,2.0906843,1634.9,1634.7,1.70320882]
[1693653121353,2.0906843,1634.9,1634.8,1.06267629]
[1693653122579,0.5246843,1634.9,1634.8,1.06267629]
[1693653123974,2.4128305,1634.9,1634.8,1.06267629]
[1693653124273,2.4128305,1634.9,1634.6,0.64053253]
[1693653124477,2.4128305,1634.9,1634.6,3.72238657]
[1693653124646,2.4128305,1634.9,1634.7,1.0627753]
[1693653129979,4.3987305,1634.9,1634.7,1.0627753]
[1693653135887,4.0765843,1634.9,1634.7,1.0627753]
[1693653138004,4.64084273,1634.9,1634.7,1.0627753]
[1693653138210,4.64084273,1634.9,1634.6,0.64053253]
[1693653138509,4.64084273,1634.9,1634.6,1.70335245]
[1693653138687,4.64084273,1634.9,1634.7,1.06281992]
[1693653139000,4.64084273,1634.9,1634.6,0.64053253]
[1693653143392,4.64084273,1634.9,1634.6,1.70334819]
[1693653143566,4.0765843,1634.9,1634.7,1.06281566]
[1693653143772,4.0765843,1634.9,1634.6,0.64053253]
[1693653145987,1.566,1634.7,1634.5,2.66669938]
[1693653146193,1.566,1634.6,1634.4,1.60388673]
[1693653146387,0.00471823,1634.8,1634.4,0.64053253]
[1693653146388,1.566,1634.5,1634.4,0.64053253]
[1693653146579,2.08324202,1634.5,1634.4,0.64053253]
[1693653146921,1.566,1634.5,1634.4,0.64053253]
[1693653147274,1.566,1634.5,1634.4,1.60388673]
[1693653148296,1.566,1634.5,1634.4,1.70347346]
[1693653148494,1.566,1634.5,1634.4,0.64053253]
[1693653149017,1.566,1634.5,1634.4,1.60388673]
[1693653149175,1.566,1634.5,1634.4,0.64053253]
[1693653149577,1.566,1634.5,1634.4,1.60388673]
[1693653151682,1.566,1634.5,1634.4,0.64053253]
[1693653151898,1.566,1634.5,1634.4,1.60388673]
[1693653152578,1.566,1634.6,1634.4,1.60388673]
[1693653153080,0.51934339,1634.5,1634.4,2.66682766]
[1693653153287,0.52402766,1634.5,1634.4,2.66682766]
[1693653153483,0.00468427,1634.5,1634.4,2.66682766]
[1693653154241,1.566,1634.6,1634.4,2.66682766]
[1693653154526,0.53781159,1634.5,1634.4,2.66682766]
[1693653154881,1.566,1634.6,1634.4,2.66682766]
[1693653155079,1.566,1634.6,1634.5,0.64053253]
[1693653155484,1.566,1634.6,1634.4,2.66682766]
[1693653156290,1.566,1634.6,1634.5,1.06294093]
[1693653156490,1.566,1634.6,1634.4,2.66682766]
[1693653156691,1.566,1634.6,1634.5,1.70347346]
[1693653157206,1.566,1634.6,1634.5,1.06294093]
[1693653158042,1.566,1634.6,1634.4,2.66682766]
[1693653158240,1.566,1634.5,1634.4,2.66682766]
[1693653160425,3.132,1634.5,1634.4,1.06294093]
[1693653160728,3.132,1634.5,1634.3,1.70347346]
[1693653160930,0.54111024,1634.5,1634.4,1.06294093]
[1693653161127,1.566,1634.5,1634.3,2.66682766]
[1693653161329,0.00468427,1634.5,1634.4,1.06294093]
[1693653161541,1.57068427,1634.5,1634.4,1.06294093]
[1693653161839,2.11288201,1634.5,1634.3,2.66682766]
[1693653162046,1.566,1634.4,1634.3,2.66682766]
[1693653162216,1.57067648,1634.4,1634.3,2.66762365]
[1693653162539,1.57067648,1634.4,1634.3,2.02629513]
[1693653162911,2.11281706,1634.4,1634.3,2.02629513]
[1693653164616,2.11281706,1634.4,1634.3,0.9633542]